Cogmind - Beta 13 X1 @@@ ROGUE MODE // 2023.06.29 @ 19:54:08 Player: Jezoensis Result: Destroyed by DAS Turret with DAS Cannon Performance ------------- Evolutions (1) 500 Regions Visited (5) 1000 Robots Destroyed (56) 280 Value Destroyed (1292) 1292 Prototype IDs (4) 80 Alien Tech Used (0) 0 Bonus (50) 50 TOTAL SCORE: 3202 Bonus ------- High Alert Combat Kills 50 Cogmind --------- Core Integrity 0/400 Matter 249/300 Energy 100/100 System Corruption 8% Temperature Cool (0) Movement Core (50) Location -9/Exiles Parts ------- > --- POWER (1) -------- (None) > --- PROPULSION (3) --- (None) > --- UTILITY (3) ------ (None) > --- WEAPON (2) ------- (None) > --- INVENTORY (5) ---- Heavy Ion Engine Improved Heat Sink Hardened Light Armor Plating High-powered Tractor Beam Improved Medium Laser Peak State ------------ > --- POWER ------------ Heavy Ion Engine > --- PROPULSION ------- Light Treads Wheel Wheel > --- UTILITY ---------- Large Storage Unit Improved Terrain Scanner Terrain Scan Processor > --- WEAPON ----------- Improved Medium Laser Improved Assault Rifle > --- INVENTORY -------- Heavy Ion Engine Light Treads Light Treads Improved Treads Wheel Improved Heat Sink High-capacity Storage Unit Seismic Detector Hardened Light Armor Plating High-powered Tractor Beam Improved EM Shotgun Improved Medium Laser Improved Assault Rifle Improved Assault Rifle Mining Laser [Rating: 21] Favorites ----------- Power Ion Engine Engine Ion Engine Power Core Light Nuclear Core Propulsion Wheel Treads Light Treads Leg Aluminum Leg Wheel Wheel Utility Improved Terrain Scanner Device Improved Terrain Scanner Storage Large Storage Unit Processor Terrain Scan Processor Protection Hardened Light Armor Plating Weapon Heavy Assault Rifle Energy Gun Small Laser Ballistic Gun Heavy Assault Rifle Launcher Rocket Launcher Special Weapon Mining Laser Build | -11 -10 -10 -9 -9 -9 ------- Run | Jun Mat Min Mat Min Exi Slots Evolved 2 | . . . 2 . . Power . | . . . . . . Propulsion 1 | . . . 1 . . Utility 1 | . . . 1 . . Weapon . | . . . . . . Parts Attached 80 | 9 17 3 39 10 2 Power 6 | 1 1 1 3 . . Engine 5 | 1 1 1 2 . . Core 1 | . . . 1 . . Reactor . | . . . . . . Propulsion 21 | 4 7 1 8 1 . Treads 8 | . 3 . 5 . . Leg 1 | . . . 1 . . Wheel 12 | 4 4 1 2 1 . Hover . | . . . . . . Flight . | . . . . . . Utility 25 | 2 6 1 11 5 . Device 13 | 1 4 1 4 3 . Storage 3 | 1 . . 2 . . Processor 4 | . 1 . 2 1 . Hackware . | . . . . . . Protection 5 | . 1 . 3 1 . Artifact . | . . . . . . Weapon 28 | 2 3 . 17 4 2 Energy Gun 14 | 1 2 . 9 2 . Energy Cannon . | . . . . . . Ballistic Gun 9 | 1 1 . 7 . . Ballistic Cannon . | . . . . . . Launcher 1 | . . . . . 1 Special Weapon 4 | . . . 1 2 1 Impact Weapon . | . . . . . . Slashing Weapon . | . . . . . . Piercing Weapon . | . . . . . . Special Melee Weapon . | . . . . . . Unidentified Prototypes 4 | . . . 4 . . Parts Lost 16 | . 4 . 8 2 2 Power 3 | . 2 . 1 . . Propulsion 8 | . 1 . 4 1 2 Utility 2 | . . . 1 1 . Weapon 3 | . 1 . 2 . . Highest Loss Streak 5 | . 2 . 5 2 2 To Critical Strikes . | . . . . . . Average Slot Usage (%) 96 | . 99 100 95 100 71 Engine 10 | . 13 14 6 11 7 Core 1 | . . . 2 . . Treads 10 | . 3 . 16 11 7 Wheel 18 | . 24 28 12 22 15 Device 8 | . 8 13 6 11 7 Storage 11 | . 14 14 10 11 7 Processor 9 | . 4 . 13 8 7 Protection 1 | . . . 1 2 . Energy Gun 10 | . 15 14 5 14 7 Ballistic Gun 12 | . 12 14 15 6 . Special Weapon 1 | . . . 1 1 7 Naked Turns 16 | . . . . . 16 Heaviest Build 40 | 13 16 12 39 40 33 Greatest Support 63 | 32 26 26 63 20 20 Greatest Overweight (x) 3 | . 1 . 3 1 1 Average Overweight (x) . | . . . . 1 . Largest Inventory Capacity 15 | 8 8 8 15 15 15 Average Capacity 11 | 7 8 8 14 15 12 Most Carried 15 | 7 8 8 15 15 15 Average Carried 10 | 4 7 7 11 14 12 Final Capacity 15 | 8 8 8 15 15 5 Final Carried 15 | 7 8 8 15 15 5 Class Distribution -------------------- 57% | Scavenger-Mutant 42% | Mutant Dominant Class ---------------- Mutant | -10/Materials Mutant | -10/Mines Scavenger-Mutant | -9/Materials Scavenger-Mutant | -9/Mines Scavenger-Mutant | -9/Exiles Resources | -11 -10 -10 -9 -9 -9 ----------- Run | Jun Mat Min Mat Min Exi Matter Collected 1326 | 257 181 23 748 117 . Remotely . | . . . . . . Salvage Created 1984 | 28 244 23 1244 411 34 Parts 139 | 5 19 4 82 29 . Haulers Intercepted 3 | . . . 3 . . Recyclers Shooed 1 | 1 . . . . . Parts Field Recycled . | . . . . . . Retrieved Matter . | . . . . . . Parts Self-Destructed . | . . . . . . Prevented . | . . . . . . Kills | -11 -10 -10 -9 -9 -9 ------- Run | Jun Mat Min Mat Min Exi Combat Hostiles Destroyed 44 | . 9 . 21 7 7 Guns 37 | . 9 . 21 7 . AOE 7 | . . . . . 7 Classes Destroyed 9 | 1 2 2 3 1 . Worker 5 | . . 1 4 . . Builder 4 | . . 1 2 1 . Tunneler 7 | 2 . . . 5 . Hauler 3 | . . . 3 . . Watcher 2 | . . . 2 . . Swarmer 7 | . 4 . 3 . . Grunt 22 | . 5 . 12 5 . Sentry 6 | . . . 6 . . Assembled 9 | . . . . 2 7 Best Kill Streak 9 | 2 3 1 6 9 7 Combat Bots Only 7 | . 3 . 4 5 7 Max Kills in Single Turn 3 | 1 2 1 1 2 3 Gunslinging 1 | . 1 . . . . Exploded 3 | . . . . . 3 Melee . | . . . . . . Uniques/NPCs Destroyed . | . . . . . . Combat | -11 -10 -10 -9 -9 -9 -------- Run | Jun Mat Min Mat Min Exi Damage Taken 2630 | . 792 . 1381 284 173 Core 612 | . 158 . 308 50 96 Absorbed by Shields . | . . . . . . Core Remaining (%) 68 | 100 . 36 . . . Volleys Fired 163 | 8 36 8 85 23 3 Largest 2 | 2 2 2 2 2 1 Hottest 112 | 60 80 60 100 112 33 Shots Fired 316 | 16 72 16 166 42 4 Gun 307 | 16 72 16 164 38 1 Cannon . | . . . . . . Launcher 3 | . . . . . 3 Special 6 | . . . 2 4 . Kinetic 173 | 8 32 8 119 6 . Thermal 121 | 8 36 8 41 28 . Explosive 3 | . . . . . 3 Electromagnetic 19 | . 4 . 6 8 1 Robot Hit Streak 19 | 7 19 4 9 13 4 Robot Miss Streak 4 | 1 3 3 4 3 1 Penetration Max . | . . . . . . Secondary Targets 7 | . 1 . 3 3 . Max Gunslinging Chain 1 | . 1 . 1 1 . Shots Hit Robots 221 | 13 52 11 113 30 2 Core Hits 113 | 5 19 2 55 19 13 Critical Kills . | . . . . . . Critical Parts Destroyed 1 | . . . 1 . . Critical Strikes 8 | . . . 6 2 . Burn 7 | . . . 5 2 . Destroy 1 | . . . 1 . . Melee Attacks . | . . . . . . Impact . | . . . . . . Slashing . | . . . . . . Piercing . | . . . . . . Sneak Attacks . | . . . . . . Combat Hostiles . | . . . . . . Follow-up Attacks . | . . . . . . Damage Inflicted 3495 | 127 584 139 1636 626 383 Guns 3029 | 127 557 139 1636 552 18 Cannons . | . . . . . . Explosions 466 | . 27 . . 74 365 Melee . | . . . . . . Ramming . | . . . . . . Kinetic 1638 | 59 216 94 1174 95 . Thermal 1210 | 68 298 45 387 412 . Explosive 365 | . . . . . 365 Electromagnetic 282 | . 70 . 75 119 18 Impact . | . . . . . . Slashing . | . . . . . . Piercing . | . . . . . . Highest Corruption 8 | . . . 4 8 8 Average Corruption 5 | . . . 3 5 8 Corruption Purged . | . . . . . . Corruption Blocked . | . . . . . . Effects 11 | . . . . 9 2 Message Errors 2 | . . . . 2 . Matter Fused 2 | . . . . 1 1 Heat Flow Errors 1 | . . . . 1 . Energy Discharges 2 | . . . . 2 . Data Loss (major) 1 | . . . . 1 . Misfires 2 | . . . . 1 1 Weapon Failures 1 | . . . . 1 . Overload Shots . | . . . . . . Overflow Damage . | . . . . . . Projectiles . | . . . . . . Explosions . | . . . . . . Melee . | . . . . . . Knockbacks . | . . . . . . Impact . | . . . . . . Kinetic . | . . . . . . Secondary . | . . . . . . Self-Inflicted Damage 21 | . . . . . 21 Shots 1 | . . . . . 1 Rammed . | . . . . . . Targets Rammed . | . . . . . . Kicked . | . . . . . . Crushed . | . . . . . . Highest Temperature 299 | 40 126 . 162 299 78 Average Temperature 54 | 22 54 . 40 88 59 Received Heat Transfer 995 | . 309 . 543 63 80 Effects 2 | . . . . 2 . Energy Bleed 1 | . . . . 1 . Interference 1 | . . . . 1 . Siege Activations . | . . . . . . Robots Corrupted . | . . . . . . Combat Hostiles . | . . . . . . Parts Fried . | . . . . . . Impact Corruptions . | . . . . . . Robots Melted . | . . . . . . Combat Hostiles . | . . . . . . Parts Melted 4 | . 1 . 2 1 . Heat Transferred 3345 | 150 700 100 1357 1038 . Parts Sabotaged . | . . . . . . Parts Stolen . | . . . . . . Parts Stripped . | . . . . . . Power Chain Reactions 2 | . . . . 2 . Missiles Intercepted . | . . . . . . Alert | -11 -10 -10 -9 -9 -9 ------- Run | Jun Mat Min Mat Min Exi Peak Influence 670 | 10 387 128 670 275 . Initial 145 | . 6 103 49 145 . Average 255 | 3 206 122 365 169 . Maximum Alert Level 2 | . 1 . 2 1 . Low Security (%) 44 | 100 43 100 15 81 . Level 1 34 | . 56 . 37 18 . Level 2 21 | . . . 47 . . Level 3 . | . . . . . . Level 4 . | . . . . . . Level 5 . | . . . . . . High Security . | . . . . . . Max Security . | . . . . . . Squads Dispatched 9 | . 4 . 5 . . Investigation 7 | . 4 . 3 . . Extermination . | . . . . . . Reinforcement 2 | . . . 2 . . Assault . | . . . . . . Garrison . | . . . . . . Intercept . | . . . . . . Searches Triggered . | . . . . . . Construction Impeded . | . . . . . . Haulers Reinforced . | . . . . . . Active Scanning Responses . | . . . . . . Cargo Convoy Interrupts . | . . . . . . Stealth | -11 -10 -10 -9 -9 -9 --------- Run | Jun Mat Min Mat Min Exi Distress Signals 6 | . 1 . 5 . . Communications Jammed . | . . . . . . Distress Signals . | . . . . . . Times Spotted 74 | . 27 . 32 7 8 Peak Tracking Total 9 | . 7 . 5 4 9 Tactical Retreats 9 | . 6 . 2 1 . Traps | -11 -10 -10 -9 -9 -9 ------- Run | Jun Mat Min Mat Min Exi Traps Triggered 4 | . 2 . 2 . . Indirectly 1 | . 1 . . . . Trap Hack Attempts . | . . . . . . Triggered . | . . . . . . Disarmed . | . . . . . . Reprogrammed . | . . . . . . Reused . | . . . . . . Traps Extracted . | . . . . . . Installed . | . . . . . . Triggered . | . . . . . . Machines | -11 -10 -10 -9 -9 -9 ---------- Run | Jun Mat Min Mat Min Exi Machines Disabled 7 | . 1 . 3 . 3 Max in Single Turn 1 | . 1 . 1 . 1 Machines Repaired . | . . . . . . Machines Sabotaged . | . . . . . . Overloaded Fab Kills . | . . . . . . Hacking | -11 -10 -10 -9 -9 -9 --------- Run | Jun Mat Min Mat Min Exi Machines Accessed 11 | . 5 . 6 . . Terminals 9 | . 4 . 5 . . Fabricators . | . . . . . . Repair Stations . | . . . . . . Recycling Units 2 | . 1 . 1 . . Scanalyzers . | . . . . . . Garrison Access . | . . . . . . Total Hacks 34 | . 16 . 18 . . Successful 14 | . 8 . 6 . . Failed 18 | . 7 . 11 . . Catastrophic 2 | . 1 . 1 . . Database Lockouts 2 | . 1 . 1 . . Manual 33 | . 15 . 18 . . Terminals 32 | . 15 . 17 . . Fabricators . | . . . . . . Repair Stations . | . . . . . . Recycling Units 2 | . 1 . 1 . . Scanalyzers . | . . . . . . Garrison Access . | . . . . . . Terminal Hacks 5 | . 3 . 2 . . Robot Analysis 2 | . 1 . 1 . . Terminal Index 1 | . 1 . . . . Unreport Threat 1 | . . . 1 . . Hauler Manifests 1 | . 1 . . . . Fabricator Hacks . | . . . . . . Repair Station Hacks . | . . . . . . Recycling Unit Hacks . | . . . . . . Scanalyzer . | . . . . . . Garrison Access Hacks . | . . . . . . Unauthorized Hacks 9 | . 5 . 4 . . Terminals 7 | . 4 . 3 . . Track 3 | . 2 . 1 . . Botnet 3 | . 2 . 1 . . Operators 1 | . . . 1 . . Fabricators . | . . . . . . Repair Stations . | . . . . . . Recycling Units 2 | . 1 . 1 . . Tunnel 2 | . 1 . 1 . . Scanalyzers . | . . . . . . Garrison Access . | . . . . . . Data Cores Recovered . | . . . . . . Used . | . . . . . . Hacking Detections 9 | . 4 . 5 . . Full Trace Events 5 | . 3 . 2 . . Feedback Events . | . . . . . . Feedback Blocked . | . . . . . . Robot Schematics Acquired . | . . . . . . Robots Built . | . . . . . . Authchips . | . . . . . . Time . | . . . . . . Total Robot Build Rating . | . . . . . . Part Schematics Acquired . | . . . . . . Parts Built . | . . . . . . Authchips . | . . . . . . Time . | . . . . . . Total Part Build Rating . | . . . . . . Parts Repaired . | . . . . . . Time . | . . . . . . Parts Recycled . | . . . . . . Recycled Matter . | . . . . . . Retrieved Matter . | . . . . . . Retrieved Components . | . . . . . . Parts Scanalyzed . | . . . . . . Part Schematics Acquired . | . . . . . . Parts Damaged . | . . . . . . Bothacking | -11 -10 -10 -9 -9 -9 ------------ Run | Jun Mat Min Mat Min Exi Used RIF Installer . | . . . . . . Robots Hacked . | . . . . . . Non-combat . | . . . . . . Combat . | . . . . . . Robot Hacks Applied . | . . . . . . Relay Couplers Released . | . . . . . . Fabnet Peak Effective % . | . . . . . . Robots Rewired . | . . . . . . Allies Hacked . | . . . . . . Hacks Repelled . | . . . . . . Allies | -11 -10 -10 -9 -9 -9 -------- Run | Jun Mat Min Mat Min Exi Total Allies . | . . . . . . Largest Group . | . . . . . . Highest-Rated Group . | . . . . . . Highest-Rated Ally . | . . . . . . Total Orders . | . . . . . . Ally Attacks . | . . . . . . Total Damage . | . . . . . . Kills . | . . . . . . Allies Corrupted . | . . . . . . Allies Melted . | . . . . . . Intel | -11 -10 -10 -9 -9 -9 ------- Run | Jun Mat Min Mat Min Exi Robot Analysis Total 2 | . 1 . 1 . . Derelict Logs Recovered 1 | . . . . 1 . Drone Launches . | . . . . . . Drone Recoveries . | . . . . . . Exploration | -11 -10 -10 -9 -9 -9 ------------- Run | Jun Mat Min Mat Min Exi Turns Passed 1972 | 79 476 178 854 318 67 Spaces Moved 1346 | 47 394 164 439 227 75 Core 53 | 21 . . 1 . 31 Treads 104 | . . . 104 . . Legs . | . . . . . . Wheels 1189 | 26 394 164 334 227 44 Hover . | . . . . . . Flight . | . . . . . . Fastest Speed 50 | 50 80 90 50 95 50 Average Speed 96 | 73 86 90 113 95 76 Slowest Speed 160 | 100 100 90 160 95 95 Overloaded Moves . | . . . . . . Propulsion Burnouts . | . . . . . . Robots Hopped . | . . . . . . Cave-ins Triggered . | . . . . . . Exploration Rate (%) 41 | 4 63 34 50 64 33 Regions Visited 5 Branch Regions 3 Pre-discovered Areas 3 | . 1 . 1 1 . Known Exits Taken . | . . . . . . Unknown Exits Taken 5 | 1 1 1 1 1 . Scrap Searched . | . . . . . . Spaces Dug 2 | . . . 2 . . Terrain Destroyed 34 | . . . 2 10 22 Melee . | . . . . . . Projectile 2 | . . . 2 . . AOE 32 | . . . . 10 22 Terrain Rammed . | . . . . . . Walls Destroyed . | . . . . . . Machines Disabled . | . . . . . . Actions | -11 -10 -10 -9 -9 -9 --------- Run | Jun Mat Min Mat Min Exi Total 1696 | 74 457 178 631 276 80 Wait 29 | 1 1 2 13 12 . Move 1341 | 46 393 163 438 226 75 Hop . | . . . . . . Pick Up 44 | 8 5 1 27 3 . Fast Attach 21 | 6 3 . 12 . . Attach 19 | 3 3 1 10 2 . Detach 10 | 2 2 . 6 . . Swap 40 | . 11 2 17 8 2 Drop 29 | . 3 1 23 2 . Fire 163 | 8 36 8 85 23 3 Melee . | . . . . . . Ram . | . . . . . . Kick . | . . . . . . Crush . | . . . . . . Escape Stasis . | . . . . . . Rewire . | . . . . . . Trap . | . . . . . . Miscellaneous . | . . . . . . Route ------- -11/Junkyard -10/Materials (discovered 3 exits: *Mat x2 / [*Min]) -10/Mines -9/Materials -9/Mines (discovered 2 exits: [*Mat] / [*Exi]) -9/Exiles History --------- Turn | Location | Event 12 | -11/Junkyard | Discovered new exit (range 15) 80 | -11/Junkyard | Entered Materials 202 | -10/Materials | Discovered new exit (range 14) 375 | -10/Materials | Build established: Mutant 412 | -10/Materials | Discovered new exit (range 13) 449 | -10/Materials | Central database locked down 506 | -10/Materials | Discovered new exit (range 9) 537 | -10/Materials | Core integrity fell below 50% 556 | -10/Materials | Entered Mines 593 | -10/Mines | Discovered new exit (range 6) 734 | -10/Mines | Entered Materials 734 | -9/Materials | Evolved 2 slots: Propulsion x1, Utility x1 1022 | -9/Materials | Core integrity fell below 50% 1060 | -9/Materials | Lost 5 parts (3n1u1w) 1112 | -9/Materials | Build established: Scavenger-Mutant 1361 | -9/Materials | Central database locked down 1584 | -9/Materials | Discovered new exit (range 5) 1588 | -9/Materials | Entered Mines 1659 | -9/Mines | Received a Rocket Launcher from a helpful Derelict 1760 | -9/Mines | Excavation squad dispatched 1760 | -9/Mines | A large section of the Mines collapsed 1763 | -9/Mines | Core integrity fell below 20% 1887 | -9/Mines | Discovered new exit (range 10) 1902 | -9/Mines | Deemed a non-threat by the Exiles lab entrance 1902 | -9/Mines | Discovered new exit (range 5) 1906 | -9/Mines | Entered Exiles 1932 | -9/Exiles | Met 8R-AWN 1948 | -9/Exiles | Met EX-HEX 1950 | -9/Exiles | Attacked by the Exiles 1957 | -9/Exiles | Released all parts (7) 1973 | -9/Exiles | Destroyed by DAS Turret with DAS Cannon Last Messages --------------- 01953_ Machine disabled. 01953_ as-76375 destroyed. 01954_ Wheel destroyed. 01955_ HV Slug penetrates Wall. 01955_ Machine disabled. 01955_ as-51974 destroyed. 01955_ as-54200 destroyed. 01957_ Penetrated by HV Slug. 01957_ HV Slug penetrates Machine. 01957_ Penetrated by HV Slug. 01957_ Lgt. Treads destroyed. 01957_ HV Slug penetrates Machine. 01957_ Released Lrg. Storage Unit. 01957_ Released Wheel. 01957_ Released Hvy. Ion Engine. 01957_ Released Imp. Terrain Scanner. 01957_ Released Terrain Scan Processor. 01957_ Released Mining Laser. 01957_ Released Rocket Launcher. 01958_ The unstable cave ceiling collapses. Map ----- +----------------------------------------------------+ | ?????????????????????????????????????????????????? | | ?????????????????????????????????????????????????? | | ?????????????????????????????????????????????????? | | ?????????????????????????????????????????????????? | | ?????????????????????????????????????????????????? | | ?????????????????????????????????????????????????? | | ?????????????????????????????????????????????????? | | ?????????????????????????????????????????????????? | | ?????????????????????????????????????????????????? | | ?????????????????????????????????????????????????? | | ?????????????????????????????? ?????????????? | | ?????????????????????????????? ????????????? | | ?????????????????????????????? ???????????? | | ?????????????????????????????? ???????????? | | ?????????????????????????????#" ???????????? | | ?????????????????????????????#" ????????????? | | ?????????????????????????????#" ?????????????? | | ????????????????????????????##" #?????????????? | | ???????????????????????????##"" #?????????????? | | ??????????????????#???######"" #?????????????? | | ???????????????? #"###""""""" ##????????????? | | ??????????? """""" " "" ##???######### | | ??????????? "" """ " #####"""""""" | | ?????????? " " " """ "" | | ?????????? "" " | | ?????????? @ " | | ?????????? % c | | ?????????? | | ??????????? | | ??????????? """""" | | ???????????? ######""" | | ???????????? ""##????#####""" | | ???????????? """#??????????##""" | | ????????????? """#????????????#"""" | | ????????????? ""?????????????#"" | | ?????????????? ????????????????"""" | | ?????????????? ?????????????????" | | ???????????????? ???????????????? | | ?????????????????????????????????? | | ?????????????????????????????????? | | ?????????????????????????????????? | | ?????????????????????????????????? "" " | | ????????????????????????????????????"" " " " | | ?????????????????????????????????????##""" "" # | | ????????????????????????????????????????#""""## | | ????????????????????????????????????????##?##?## | | ??????????????????????????????????????????????#### | | ?????????????????????????????????????????????????? | | ?????????????????????????????????????????????????? | | ?????????????????????????????????????????????????? | +----------------------------------------------------+ Best States ------------- Heat Dissipation 42 Energy Generation 14 Energy Capacity 280 Matter Stores 300 Matter Capacity 300 Sight Range 16 Terrain Scan Range 16 Terrain Scan Density 85 Armor Coverage 150 Evasion (%) 50 Targeting Accuracy 5 Recoil Reduction 3 Salvage Targeting 1 Item Schematics ----------------- None Robot Schematics ------------------ None Fabricated ------------ Nothing Alien Tech Used ----------------- None Achievements -------------- None Challenges ------------ None Game ------ Seed GuidanceGaussSink Manual? 0 Play Time 00:24:58 Cumulative 954.6 hours Start 2023.06.29 @ 19:19:21 End 2023.06.29 @ 19:54:08 Sessions 1 Manual Loads 0 Difficulty Rogue Special Mode None Game No. 496 Rogue 369 Adventurer 125 Explorer 2 Win Type - Total 112 Types 88/9/7/2/3/0/0/2/1 Lore% 82 Gallery% 89 Achievement% 82 Wizard Run 0 Options --------- ASCII 0 Keyboard 1 Movement Numpad Keybinds 0 Fullscreen 1 Font 36/TerminusFine Map View 76x50 Tactical HUD 1 Map Filters NONE Filters NONE Steam 1 RUN: b9fb6053-457b-479b-ae57-e5b5a15f307f